Cogmind - Beta 12 @@@ ROGUE MODE // 2023.05.16 @ 09:54:13 Player: Mr Goldstein Result: Destroyed by Y-45 Defender with Heavy Assault Rifle Performance ------------- Evolutions (2) 1000 Regions Visited (5) 1000 Robots Destroyed (0) 0 Value Destroyed (0) 0 Prototype IDs (0) 0 Alien Tech Used (0) 0 Bonus (711) 711 TOTAL SCORE: 2711 Bonus ------- Pacifist 470 Follower Combat Kills 241 Cogmind --------- Core Integrity 0/550 Matter 295/300 Energy 98/100 System Corruption 3% Temperature Cool (9) Movement Core (50) Location -8/Recycling Parts ------- > --- POWER (1) -------- (None) > --- PROPULSION (2) --- (None) > --- UTILITY (6) ------ Scrap Engine > --- WEAPON (2) ------- (None) > --- INVENTORY (5) ---- (None) Peak State ------------ > --- POWER ------------ (None) > --- PROPULSION ------- (None) > --- UTILITY ---------- Scrap Engine > --- WEAPON ----------- (None) > --- INVENTORY -------- (None) [Rating: 16] Favorites ----------- Power None Propulsion None Utility Scrap Engine Device Scrap Engine Weapon None Build | -11 -10 -9 -8 -8 -8 ------- Run | Jun Mat Mat Mat Sto Rec Slots Evolved 4 | . . 2 2 . . Power . | . . . . . . Propulsion . | . . . . . . Utility 4 | . . 2 2 . . Weapon . | . . . . . . Parts Attached 1 | . . . . . 1 Power . | . . . . . . Engine . | . . . . . . Core . | . . . . . . Reactor . | . . . . . . Propulsion . | . . . . . . Treads . | . . . . . . Leg . | . . . . . . Wheel . | . . . . . . Hover . | . . . . . . Flight . | . . . . . . Utility 1 | . . . . . 1 Device 1 | . . . . . 1 Storage . | . . . . . . Processor . | . . . . . . Hackware . | . . . . . . Protection . | . . . . . . Artifact . | . . . . . . Weapon . | . . . . . . Energy Gun . | . . . . . . Energy Cannon . | . . . . . . Ballistic Gun . | . . . . . . Ballistic Cannon . | . . . . . . Launcher . | . . . . . . Special Weapon . | . . . . . . Impact Weapon . | . . . . . . Slashing Weapon . | . . . . . . Piercing Weapon . | . . . . . . Special Melee Weapon . | . . . . . . Unidentified Prototypes . | . . . . . . Parts Lost . | . . . . . . Power . | . . . . . . Propulsion . | . . . . . . Utility . | . . . . . . Weapon . | . . . . . . Highest Loss Streak . | . . . . . . To Critical Strikes . | . . . . . . Average Slot Usage (%) 2 | . . . . . 9 Device 2 | . . . . . 9 Naked Turns 277 | . 32 99 14 132 . Heaviest Build 1 | . . . . . 1 Greatest Support 3 | 3 3 3 3 3 3 Greatest Overweight (x) . | . . . . . . Average Overweight (x) . | . . . . . . Largest Inventory Capacity 5 | 5 5 5 5 5 5 Average Capacity 5 | 5 5 5 5 5 5 Most Carried . | . . . . . . Average Carried . | . . . . . . Final Capacity 5 | 5 5 5 5 5 5 Final Carried . | . . . . . . Class Distribution -------------------- 89% | Mutant 10% | Commander-Mutant Dominant Class ---------------- Mutant | -10/Materials Mutant | -9/Materials Mutant | -8/Materials Mutant | -8/Storage Mutant | -8/Recycling Resources | -11 -10 -9 -8 -8 -8 ----------- Run | Jun Mat Mat Mat Sto Rec Matter Collected 200 | 200 . . . . . Remotely . | . . . . . . Salvage Created . | . . . . . . Parts . | . . . . . . Haulers Intercepted . | . . . . . . Recyclers Shooed . | . . . . . . Parts Field Recycled . | . . . . . . Retrieved Matter . | . . . . . . Parts Self-Destructed . | . . . . . . Prevented . | . . . . . . Kills | -11 -10 -9 -8 -8 -8 ------- Run | Jun Mat Mat Mat Sto Rec Combat Hostiles Destroyed . | . . . . . . Classes Destroyed . | . . . . . . Best Kill Streak . | . . . . . . Combat Bots Only . | . . . . . . Max Kills in Single Turn . | . . . . . . Gunslinging . | . . . . . . Exploded . | . . . . . . Melee . | . . . . . . Uniques/NPCs Destroyed . | . . . . . . Combat | -11 -10 -9 -8 -8 -8 -------- Run | Jun Mat Mat Mat Sto Rec Damage Taken 888 | . 6 311 . 475 96 Core 874 | . 6 311 . 475 82 Absorbed by Shields . | . . . . . . Core Remaining (%) 73 | 100 97 22 . . . Volleys Fired . | . . . . . . Largest . | . . . . . . Hottest . | . . . . . . Shots Fired . | . . . . . . Gun . | . . . . . . Cannon . | . . . . . . Launcher . | . . . . . . Special . | . . . . . . Kinetic . | . . . . . . Thermal . | . . . . . . Explosive . | . . . . . . Electromagnetic . | . . . . . . Robot Hit Streak . | . . . . . . Robot Miss Streak . | . . . . . . Penetration Max . | . . . . . . Secondary Targets . | . . . . . . Shots Hit Robots . | . . . . . . Core Hits 1 | . . . . 1 . Critical Kills . | . . . . . . Critical Parts Destroyed . | . . . . . . Critical Strikes . | . . . . . . Melee Attacks . | . . . . . . Impact . | . . . . . . Slashing . | . . . . . . Piercing . | . . . . . . Sneak Attacks . | . . . . . . Combat Hostiles . | . . . . . . Follow-up Attacks . | . . . . . . Damage Inflicted 42 | . . . . 28 14 Guns . | . . . . . . Cannons . | . . . . . . Explosions . | . . . . . . Melee . | . . . . . . Ramming 42 | . . . . 28 14 Kinetic . | . . . . . . Thermal . | . . . . . . Explosive . | . . . . . . Electromagnetic . | . . . . . . Impact . | . . . . . . Slashing . | . . . . . . Piercing . | . . . . . . Highest Corruption 3 | . . 2 . 3 3 Average Corruption 2 | . . 2 . 2 3 Corruption Purged . | . . . . . . Corruption Blocked . | . . . . . . Effects 4 | . . 2 . . 2 Message Errors 2 | . . 1 . . 1 Matter Fused 1 | . . 1 . . . Energy Discharges 1 | . . . . . 1 Overload Shots . | . . . . . . Overflow Damage . | . . . . . . Projectiles . | . . . . . . Explosions . | . . . . . . Melee . | . . . . . . Knockbacks . | . . . . . . Impact . | . . . . . . Kinetic . | . . . . . . Secondary . | . . . . . . Self-Inflicted Damage 20 | . . . . 13 7 Shots . | . . . . . . Rammed 6 | . . 1 . 4 1 Targets Rammed 6 | . . 1 . 4 1 Kicked . | . . . . . . Crushed . | . . . . . . Highest Temperature 23 | . . . . 23 . Average Temperature 23 | . . . . 23 . Received Heat Transfer 243 | . . 72 . 153 18 Siege Activations . | . . . . . . Robots Corrupted . | . . . . . . Combat Hostiles . | . . . . . . Parts Fried . | . . . . . . Impact Corruptions . | . . . . . . Robots Melted . | . . . . . . Combat Hostiles . | . . . . . . Parts Melted . | . . . . . . Heat Transferred . | . . . . . . Parts Sabotaged . | . . . . . . Parts Stolen . | . . . . . . Parts Stripped . | . . . . . . Power Chain Reactions . | . . . . . . Missiles Intercepted . | . . . . . . Alert | -11 -10 -9 -8 -8 -8 ------- Run | Jun Mat Mat Mat Sto Rec Peak Influence 578 | . 15 110 46 578 285 Initial 225 | . . 5 46 18 225 Average 138 | . 1 51 46 158 276 Maximum Alert Level 2 | . . . . 2 1 Low Security (%) 65 | 100 100 100 100 73 . Level 1 27 | . . . . 7 100 Level 2 6 | . . . . 18 . Level 3 . | . . . . . . Level 4 . | . . . . . . Level 5 . | . . . . . . High Security . | . . . . . . Max Security . | . . . . . . Squads Dispatched 5 | . . . . 5 . Investigation 2 | . . . . 2 . Extermination . | . . . . . . Reinforcement 3 | . . . . 3 . Assault . | . . . . . . Garrison . | . . . . . . Intercept . | . . . . . . Searches Triggered . | . . . . . . Construction Impeded . | . . . . . . Haulers Reinforced . | . . . . . . Active Scanning Responses . | . . . . . . Cargo Convoy Interrupts . | . . . . . . Stealth | -11 -10 -9 -8 -8 -8 --------- Run | Jun Mat Mat Mat Sto Rec Distress Signals 3 | . . . . 3 . Communications Jammed . | . . . . . . Distress Signals . | . . . . . . Times Spotted 49 | . 3 17 . 27 2 Peak Tracking Total 17 | . 4 11 . 17 4 Tactical Retreats 6 | . . 2 . 4 . Traps | -11 -10 -9 -8 -8 -8 ------- Run | Jun Mat Mat Mat Sto Rec Traps Triggered 3 | . . 1 . 2 . Indirectly . | . . . . . . Trap Hack Attempts . | . . . . . . Triggered . | . . . . . . Disarmed . | . . . . . . Reprogrammed . | . . . . . . Reused . | . . . . . . Traps Extracted . | . . . . . . Installed . | . . . . . . Triggered . | . . . . . . Machines | -11 -10 -9 -8 -8 -8 ---------- Run | Jun Mat Mat Mat Sto Rec Machines Disabled . | . . . . . . Max in Single Turn . | . . . . . . Machines Repaired . | . . . . . . Machines Sabotaged . | . . . . . . Overloaded Fab Kills . | . . . . . . Hacking | -11 -10 -9 -8 -8 -8 --------- Run | Jun Mat Mat Mat Sto Rec Machines Accessed 5 | . . . . 3 2 Terminals 3 | . . . . 3 . Fabricators . | . . . . . . Repair Stations . | . . . . . . Recycling Units 2 | . . . . . 2 Scanalyzers . | . . . . . . Garrison Access . | . . . . . . Total Hacks 11 | . . . . 8 3 Successful 2 | . . . . . 2 Failed 9 | . . . . 8 1 Catastrophic 2 | . . . . 2 . Database Lockouts . | . . . . . . Manual 10 | . . . . 7 3 Terminals 8 | . . . . 8 . Fabricators . | . . . . . . Repair Stations . | . . . . . . Recycling Units 3 | . . . . . 3 Scanalyzers . | . . . . . . Garrison Access . | . . . . . . Terminal Hacks . | . . . . . . Fabricator Hacks . | . . . . . . Repair Station Hacks . | . . . . . . Recycling Unit Hacks . | . . . . . . Scanalyzer . | . . . . . . Garrison Access Hacks . | . . . . . . Unauthorized Hacks 2 | . . . . . 2 Terminals . | . . . . . . Fabricators . | . . . . . . Repair Stations . | . . . . . . Recycling Units 2 | . . . . . 2 Tunnel 2 | . . . . . 2 Scanalyzers . | . . . . . . Garrison Access . | . . . . . . Data Cores Recovered . | . . . . . . Used . | . . . . . . Hacking Detections 3 | . . . . 3 . Full Trace Events 3 | . . . . 3 . Feedback Events 1 | . . . . 1 . Corruption 1 | . . . . 1 . Feedback Blocked . | . . . . . . Robot Schematics Acquired . | . . . . . . Robots Built . | . . . . . . Authchips . | . . . . . . Time . | . . . . . . Total Robot Build Rating . | . . . . . . Part Schematics Acquired . | . . . . . . Parts Built . | . . . . . . Authchips . | . . . . . . Time . | . . . . . . Total Part Build Rating . | . . . . . . Parts Repaired . | . . . . . . Time . | . . . . . . Parts Recycled . | . . . . . . Recycled Matter . | . . . . . . Retrieved Matter . | . . . . . . Retrieved Components . | . . . . . . Parts Scanalyzed . | . . . . . . Part Schematics Acquired . | . . . . . . Parts Damaged . | . . . . . . Bothacking | -11 -10 -9 -8 -8 -8 ------------ Run | Jun Mat Mat Mat Sto Rec Used RIF Installer . | . . . . . . Robots Hacked . | . . . . . . Non-combat . | . . . . . . Combat . | . . . . . . Robot Hacks Applied . | . . . . . . Relay Couplers Released . | . . . . . . Fabnet Peak Effective % . | . . . . . . Robots Rewired . | . . . . . . Allies Hacked . | . . . . . . Hacks Repelled . | . . . . . . Allies | -11 -10 -9 -8 -8 -8 -------- Run | Jun Mat Mat Mat Sto Rec Total Allies 10 | . . . . 10 . Largest Group 10 | . . . . 10 . Highest-Rated Group 173 | . . . . 173 . Highest-Rated Ally 29 | . . . . 29 . Total Orders . | . . . . . . Ally Attacks 52 | . . . . 52 . Total Damage 724 | . . . . 724 . Kills 7 | . . . . 7 . Allies Corrupted . | . . . . . . Allies Melted . | . . . . . . Intel | -11 -10 -9 -8 -8 -8 ------- Run | Jun Mat Mat Mat Sto Rec Robot Analysis Total . | . . . . . . Derelict Logs Recovered . | . . . . . . Drone Launches . | . . . . . . Drone Recoveries . | . . . . . . Exploration | -11 -10 -9 -8 -8 -8 ------------- Run | Jun Mat Mat Mat Sto Rec Turns Passed 385 | 12 32 99 14 132 96 Spaces Moved 698 | 23 64 196 27 223 165 Core 698 | 23 64 196 27 223 165 Treads . | . . . . . . Legs . | . . . . . . Wheels . | . . . . . . Hover . | . . . . . . Flight . | . . . . . . Fastest Speed 50 | 50 50 50 50 50 50 Average Speed 50 | 50 50 50 50 50 50 Slowest Speed 50 | 50 50 50 50 50 50 Overloaded Moves . | . . . . . . Propulsion Burnouts . | . . . . . . Robots Hopped . | . . . . . . Cave-ins Triggered . | . . . . . . Exploration Rate (%) 21 | 3 16 27 5 42 34 Regions Visited 5 Branch Regions 2 Pre-discovered Areas 2 | . . . . . 2 Known Exits Taken . | . . . . . . Unknown Exits Taken 5 | 1 1 1 1 1 . Scrap Searched . | . . . . . . Spaces Dug . | . . . . . . Terrain Destroyed . | . . . . . . Melee . | . . . . . . Projectile . | . . . . . . AOE . | . . . . . . Terrain Rammed . | . . . . . . Walls Destroyed . | . . . . . . Machines Disabled . | . . . . . . Actions | -11 -10 -9 -8 -8 -8 --------- Run | Jun Mat Mat Mat Sto Rec Total 727 | 22 63 196 26 242 178 Wait 11 | . . . . . 11 Move 693 | 22 63 195 26 222 165 Hop . | . . . . . . Pick Up . | . . . . . . Fast Attach 1 | . . . . . 1 Attach . | . . . . . . Detach . | . . . . . . Swap . | . . . . . . Drop . | . . . . . . Fire . | . . . . . . Melee . | . . . . . . Ram 6 | . . 1 . 4 1 Kick . | . . . . . . Crush . | . . . . . . Escape Stasis 15 | . . . . 15 . Rewire 1 | . . . . 1 . Trap . | . . . . . . Miscellaneous . | . . . . . . Route ------- -11/Junkyard -10/Materials -9/Materials -8/Materials -8/Storage -8/Recycling History --------- Turn | Location | Event 5 | -11/Junkyard | Discovered new exit (range 15) 13 | -11/Junkyard | Entered Materials 43 | -10/Materials | Discovered new exit (range 6) 45 | -10/Materials | Entered another Materials area 45 | -9/Materials | Evolved 2 slots: Utility x2 125 | -9/Materials | Core integrity fell below 50% 142 | -9/Materials | Discovered new exit (range 6) 144 | -9/Materials | Entered another Materials area 144 | -8/Materials | Evolved 2 slots: Utility x2 152 | -8/Materials | Discovered new exit (range 11) 158 | -8/Materials | Entered Storage 210 | -8/Storage | Core integrity fell below 50% 239 | -8/Storage | Core integrity fell below 20% 253 | -8/Storage | Assisted by bots powering up and referring to "LRC-V3" 289 | -8/Storage | Used back door to open Recycling access 289 | -8/Storage | Discovered new exit (range 3) 290 | -8/Storage | Entered Recycling 290 | -8/Recycling | Found Scrap Engine 386 | -8/Recycling | Destroyed by Y-45 Defender with Heavy Assault Rifle Last Messages --------------- Access granted. 00289_ EXIT=FOUND A mysterious object appears at your location! LOCATION=UNKNOWN GOAL=ESCAPE 00290_ Acquired Scrap Engine. 00301_ Connecting with Recycling Unit... 00301_ Current location identified: Recycling >>Force(Tunnel) DISCOVERED[-5/Hub_04(d)] 00305_ Connecting with Recycling Unit... >>Force(Tunnel) DISCOVERED[-2/Quarantine] 00306_ System corrupted: Energy discharge (-21). 00324_ Slammed into R-06 Scavenger. 00334_